bitfinex-derivatives/quotes_BTCF0:USTF0_20241117
["timestamp","ask_amount","ask_price","bid_price","bid_amount"]
[1731838319982,0.09166483,91270.0,91269.0,0.16937611]
[1731838320897,0.09166483,91270.0,91269.0,0.15361456]
[1731838321105,0.09166483,91270.0,91269.0,0.16937604]
[1731838321300,0.09166483,91270.0,91269.0,0.15361456]
[1731838321602,0.09166483,91270.0,91269.0,0.16937604]
[1731838322402,0.09166483,91270.0,91269.0,0.16046738]
[1731838322705,0.09166483,91270.0,91269.0,0.16937602]
[1731838322915,0.02870429,91270.0,91269.0,0.58466443]
[1731838323096,0.16442548,91271.0,91269.0,0.52988443]
[1731838323296,0.16442548,91276.0,91275.0,0.054776]
[1731838323501,0.19729621,91282.0,91275.0,1.56339706]
[1731838323696,0.19729621,91282.0,91280.0,0.05448841]
[1731838323905,0.00014172,91281.0,91280.0,0.10926141]
[1731838324207,0.00014172,91281.0,91280.0,0.11953882]
[1731838324993,0.00014172,91281.0,91280.0,0.1250201]
[1731838325204,0.00014172,91281.0,91280.0,0.07053169]
[1731838326004,0.00014172,91281.0,91280.0,0.80748967]
[1731838326210,0.00014172,91281.0,91280.0,0.07278055]
[1731838326405,0.00014172,91281.0,91280.0,0.39837512]
[1731838326908,0.00014172,91281.0,91280.0,0.46447581]
[1731838327117,0.00014172,91281.0,91280.0,0.48023375]
[1731838327296,0.00014172,91281.0,91280.0,0.47338243]
[1731838327501,0.00014172,91281.0,91280.0,0.48023368]
[1731838328204,0.00014172,91281.0,91280.0,0.52449251]
[1731838328406,0.00164384,91291.0,91290.0,0.054767]
[1731838328609,0.00164384,91291.0,91290.0,0.43132487]
[1731838329710,0.00164384,91291.0,91290.0,0.43357109]
[1731838330099,0.00164384,91291.0,91290.0,0.43132455]
[1731838330510,0.00164384,91291.0,91290.0,0.46152455]
[1731838330813,0.00164384,91291.0,91290.0,0.46152441]
[1731838331010,0.00164384,91291.0,91290.0,0.05819252]
[1731838331215,0.00164384,91291.0,91290.0,0.05819256]
[1731838331405,0.00164384,91291.0,91290.0,0.06367347]
[1731838331607,0.00164384,91291.0,91290.0,0.0705246]
[1731838333509,0.00164384,91291.0,91290.0,0.07276992]
[1731838334010,0.00164384,91291.0,91290.0,0.0705246]
[1731838335209,0.00014156,91294.0,91293.0,0.054765]
[1731838335508,0.00014156,91294.0,91293.0,0.0705226]
[1731838335898,0.00014156,91294.0,91293.0,0.07276762]
[1731838336610,0.00014156,91294.0,91293.0,0.0705226]
[1731838338011,0.00014156,91294.0,91293.0,0.054765]
[1731838338515,0.14254844,91304.0,91293.0,0.03027068]
[1731838338816,0.16233308,91306.0,91301.0,0.05448841]
[1731838339114,0.054759,91304.0,91302.0,0.03027068]
[1731838339306,0.054759,91304.0,91303.0,0.03027068]
[1731838339507,0.05483598,91304.0,91303.0,0.03027068]
[1731838339815,0.10811236,91304.0,91303.0,0.03027068]
[1731838340005,0.10811236,91304.0,91303.0,0.07358139]
[1731838340205,0.10811236,91304.0,91303.0,0.03027068]
[1731838340510,0.05335336,91304.0,91303.0,0.08502968]
[1731838340710,0.16386664,91304.0,91303.0,0.12850677]
[1731838340909,7.698e-05,91304.0,91303.0,0.12850677]
[1731838341304,7.698e-05,91304.0,91303.0,0.48930677]
[1731838341708,7.698e-05,91304.0,91303.0,0.48182848]
[1731838341908,7.698e-05,91304.0,91303.0,0.48759965]
[1731838342706,7.698e-05,91304.0,91303.0,1.98759965]
[1731838344612,0.08313581,91307.0,91303.0,1.94328287]
[1731838344816,0.054759,91305.0,91304.0,0.02429904]
[1731838345111,0.054759,91305.0,91304.0,0.02772387]
[1731838345412,0.10803483,91305.0,91304.0,0.02772387]
[1731838345613,0.14133483,91305.0,91304.0,0.02772387]
[1731838345915,0.14143608,91305.0,91304.0,0.02772387]
[1731838346114,0.25187816,91305.0,91304.0,0.02772387]
[1731838346515,0.14143575,91305.0,91304.0,0.02772387]
[1731838346814,0.25189998,91305.0,91304.0,0.02772387]
[1731838347409,0.08815993,91305.0,91304.0,0.02772387]
[1731838348506,0.03340093,91305.0,91304.0,0.02772387]
[1731838348722,0.83200834,91305.0,91304.0,0.02772387]
[1731838348919,0.054762,91298.0,91297.0,0.0051]
[1731838349114,0.054767,91291.0,91290.0,0.0051]
[1731838349415,0.05477,91286.0,91285.0,0.19659061]
[1731838349615,0.05448841,91290.0,91282.0,0.054772]
[1731838349616,0.05477,91285.0,91282.0,0.054772]
[1731838349922,0.05477,91285.0,91283.0,0.054771]
[1731838351016,0.05477,91285.0,91283.0,0.31709014]
[1731838351218,0.05477,91285.0,91282.0,0.3608]
[1731838351219,0.05448841,91285.0,91282.0,0.26231914]
[1731838351518,0.09814198,91285.0,91277.0,0.19668829]
[1731838351718,0.09814198,91285.0,91276.0,0.00056]
[1731838351719,0.10926341,91277.0,91276.0,0.00056]
[1731838351930,0.10926341,91277.0,91269.0,0.0051]
[1731838351931,0.05448841,91277.0,91270.0,0.19668829]
[1731838352119,0.3608,91281.0,91270.0,0.19668829]
[1731838352120,0.10926741,91271.0,91270.0,0.19668829]
[1731838352308,0.05478,91269.0,91268.0,0.19668829]
[1731838352809,0.05478,91269.0,91265.0,0.09901342]
[1731838353515,0.03010934,91269.0,91265.0,0.09901342]
[1731838354014,0.3608,91281.0,91268.0,0.05448841]
[1731838354215,0.3608,91281.0,91268.0,0.25121051]
[1731838354523,0.054777,91274.0,91269.0,0.05478]
[1731838356829,0.054777,91274.0,91270.0,0.00685291]
[1731838357009,0.054777,91274.0,91271.0,0.00685291]
[1731838357208,0.054777,91274.0,91272.0,0.00685291]
[1731838357412,0.054777,91274.0,91273.0,0.00685291]
[1731838358013,0.054777,91274.0,91269.0,0.05478]
[1731838358212,0.054777,91274.0,91270.0,0.00685291]
[1731838358520,0.054777,91274.0,91271.0,0.00685291]
[1731838358820,0.054777,91274.0,91269.0,0.05478]
[1731838358821,0.054777,91274.0,91272.0,0.01233521]
[1731838359128,0.3608,91281.0,91273.0,0.06682362]
[1731838359312,0.3608,91281.0,91277.0,0.05448841]
[1731838359513,0.054772,91283.0,91278.0,0.01233521]
[1731838359723,0.054772,91282.0,91279.0,0.01233521]
[1731838359914,0.054772,91282.0,91280.0,0.01233521]
[1731838360111,0.054772,91282.0,91281.0,0.01233521]
[1731838360930,0.054772,91282.0,91281.0,0.01576063]
[1731838361111,0.05477,91287.0,91281.0,0.01576063]
[1731838361315,0.3608,91291.0,91282.0,0.07024904]
[1731838361523,0.3608,91291.0,91290.0,0.05448841]
[1731838361723,0.3608,91291.0,91290.0,0.07024904]
[1731838361917,0.3608,91291.0,91290.0,1.57024904]
[1731838362113,0.41528841,91291.0,91290.0,0.01576063]
[1731838362516,0.44568841,91291.0,91290.0,0.01576063]
[1731838365123,0.50045541,91291.0,91290.0,0.01576008]
[1731838368422,0.054767,91291.0,91290.0,0.01576008]
[1731838369728,0.3608,91300.0,91290.0,0.01576008]
[1731838369933,0.054764,91295.0,91294.0,0.054765]
[1731838370121,0.10804764,91295.0,91294.0,0.07052508]
[1731838370723,0.054764,91295.0,91294.0,0.07052508]
[1731838371725,0.054764,91295.0,91279.0,0.00056]
[1731838371726,0.77541558,91295.0,91279.0,0.00056]
[1731838371941,0.77541558,91295.0,91256.0,0.0059]
[1731838371942,0.054779,91270.0,91251.0,0.32789893]
[1731838372138,0.16346523,91280.0,91236.0,0.0327]
[1731838372139,0.054798,91239.0,91236.0,0.0327]
[1731838372332,0.52447785,91253.0,91236.0,0.3935]
[1731838372538,0.16367785,91250.0,91244.0,0.054795]
[1731838372838,0.16367785,91250.0,91239.0,0.05448841]
[1731838372839,0.054792,91249.0,91245.0,0.054794]
[1731838373024,9.008e-05,91248.0,91245.0,0.054794]
[1731838373224,0.054794,91247.0,91243.0,0.00013193]
[1731838373436,0.054795,91245.0,91243.0,0.00013193]
[1731838374233,9.008e-05,91248.0,91243.0,0.00013193]
[1731838374431,9.008e-05,91248.0,91247.0,0.054793]
[1731838374635,9.008e-05,91248.0,91247.0,0.415593]
[1731838375144,0.16367785,91262.0,91247.0,0.93694924]
[1731838375437,0.16367785,91275.0,91269.0,0.05478]
[1731838375625,0.16367785,91275.0,91270.0,0.0637]
[1731838375826,0.16367785,91276.0,91270.0,0.0637]
[1731838376034,0.0312,91281.0,91270.0,0.0637]
[1731838376035,0.16367785,91277.0,91270.0,0.0637]
[1731838376228,0.054778,91273.0,91270.0,0.0637]
[1731838376433,0.054779,91271.0,91270.0,0.0637]
[1731838379539,0.054779,91271.0,91270.0,0.0325]
[1731838379732,0.054779,91271.0,91270.0,0.03935279]
[1731838380638,0.1378498,91271.0,91270.0,0.00685279]
[1731838381545,0.1378498,91271.0,91258.0,0.29421914]
[1731838381546,0.054785,91260.0,91258.0,0.0319]
[1731838381734,0.054785,91260.0,91259.0,0.00685357]
[1731838382041,0.054785,91260.0,91259.0,0.01233643]
[1731838383737,0.054785,91260.0,91259.0,0.01576321]
[1731838384369,0.054785,91260.0,91259.0,0.0157632]
[1731838384646,0.03011227,91260.0,91259.0,0.0157632]
[1731838385031,0.24674865,91271.0,91259.0,0.01576307]
[1731838385237,0.054779,91271.0,91270.0,0.054779]
[1731838385435,0.054779,91271.0,91270.0,0.07054207]
[1731838385845,0.16380009,91276.0,91275.0,0.054776]
[1731838386040,0.00012224,91276.0,91275.0,0.42448556]
[1731838386243,0.0304,91297.0,91283.0,0.054771]
[1731838386244,0.16367785,91290.0,91283.0,0.054771]
[1731838386553,0.05477,91286.0,91284.0,1.54796307]
[1731838386844,0.05477,91286.0,91285.0,0.01576307]
[1731838387435,0.0001154,91287.0,91286.0,0.05477]
[1731838387645,0.0001154,91287.0,91286.0,0.07053307]
[1731838391550,0.0001154,91287.0,91286.0,0.05477]
[1731838391753,0.0001154,91287.0,91286.0,0.07052918]
[1731838392641,0.0001154,91287.0,91286.0,0.05819591]
[1731838392951,0.0001154,91287.0,91286.0,0.07052918]
[1731838395249,0.0001154,91287.0,91286.0,0.05477]
[1731838395556,0.0001154,91287.0,91286.0,0.07052831]
[1731838398541,0.0001154,91287.0,91286.0,0.05477]
[1731838398748,0.0001154,91287.0,91286.0,0.43275197]
[1731838399250,0.0001154,91287.0,91286.0,0.43132758]
[1731838401251,0.0001154,91287.0,91286.0,0.4313261]
[1731838402355,0.0001154,91287.0,91286.0,0.43132601]
[1731838402553,0.0001154,91287.0,91286.0,0.42790079]
[1731838402857,0.0051,91297.0,91286.0,0.41899522]
[1731838403154,0.0051,91303.0,91302.0,0.05476]
[1731838403459,0.085357,91307.0,91305.0,0.054758]
[1731838403642,0.085357,91307.0,91306.0,0.00890557]
[1731838403844,0.085357,91307.0,91306.0,0.01575601]
[1731838404057,0.08544995,91307.0,91306.0,0.01575601]
[1731838404755,0.08544995,91307.0,91306.0,0.3766822]
[1731838404756,9.295e-05,91307.0,91306.0,0.3766822]
[1731838404957,9.295e-05,91307.0,91306.0,0.46997054]
[1731838405549,9.295e-05,91307.0,91306.0,0.50207054]
[1731838405853,0.0051,91316.0,91315.0,0.054752]
[1731838406154,0.00164315,91319.0,91318.0,0.05475]
[1731838406344,0.00164315,91319.0,91318.0,0.06365366]
[1731838406551,0.00164315,91319.0,91318.0,0.07050263]
[1731838406751,0.00164315,91319.0,91318.0,0.07192531]
[1731838407259,0.00164315,91319.0,91318.0,0.07050263]
[1731838407448,0.00164315,91319.0,91318.0,0.07192531]
[1731838408450,0.00164315,91319.0,91318.0,0.07050263]
[1731838408451,0.05490728,91319.0,91318.0,0.07050263]
[1731838408651,0.10965728,91319.0,91318.0,0.07050263]
[1731838408850,0.10965728,91319.0,91318.0,0.01575263]
[1731838409146,0.10965728,91319.0,91316.0,0.054752]
[1731838409355,0.05639315,91319.0,91318.0,0.00142135]
[1731838409550,0.10965783,91319.0,91318.0,0.00690083]
[1731838409751,0.10965783,91319.0,91318.0,0.0158048]
[1731838410146,0.10965783,91319.0,91318.0,0.02407515]
[1731838410555,0.10965783,91319.0,91318.0,0.00690083]
[1731838410754,0.10965783,91319.0,91318.0,0.02065073]
[1731838411058,0.10965874,91319.0,91318.0,0.02265428]
[1731838411858,0.10965874,91319.0,91318.0,0.02407539]
[1731838412152,0.10965874,91319.0,91318.0,0.02265428]
[1731838412354,0.21527767,91319.0,91318.0,0.02265428]
[1731838412956,0.21527767,91319.0,91318.0,0.02265574]
[1731838413257,0.21527767,91319.0,91318.0,0.00690083]
[1731838413448,0.21527767,91319.0,91318.0,0.01923077]
[1731838413759,0.21527767,91319.0,91318.0,0.02265575]
[1731838413955,0.21527767,91319.0,91318.0,0.01580578]
[1731838414659,0.054757,91307.0,91306.0,0.00012619]
[1731838414857,0.8271878,91307.0,91306.0,0.00012619]
[1731838415555,0.95811295,91307.0,91306.0,0.00012619]
[1731838415764,0.99007788,91307.0,91306.0,0.00012619]
[1731838416259,0.8590878,91307.0,91306.0,0.00012619]
[1731838417960,0.96798724,91307.0,91282.0,0.3608]
[1731838418164,0.054768,91289.0,91287.0,0.054769]
[1731838418468,0.054768,91289.0,91288.0,0.00685128]
[1731838419764,0.054768,91289.0,91288.0,0.00685136]
[1731838423264,0.4489708,91299.0,91287.0,0.054769]
[1731838423457,0.054768,91288.0,91287.0,0.054769]
[1731838423767,0.03010319,91288.0,91287.0,0.054769]
[1731838423964,0.03010319,91288.0,91287.0,0.06162033]
[1731838424661,0.03010319,91288.0,91287.0,0.01233247]
[1731838426568,0.03010319,91288.0,91287.0,0.01575823]
[1731838429069,0.88557399,91288.0,91282.0,0.00151861]
[1731838429374,0.88557399,91288.0,91263.0,0.39378761]
[1731838429375,0.3608,91283.0,91274.0,0.00141278]
[1731838429561,0.415577,91275.0,91260.0,1.5]
[1731838429765,0.05478,91269.0,91267.0,0.00141261]
[1731838429963,0.24968756,91268.0,91265.0,0.0014127]
[1731838430161,0.4438708,91266.0,91261.0,0.0014127]
[1731838430361,0.21848954,91263.0,91261.0,0.0014127]
[1731838430568,0.054786,91259.0,91258.0,0.0014127]
[1731838430869,0.1378568,91259.0,91258.0,0.0014127]
[1731838431069,0.1378568,91259.0,91257.0,0.0014127]
[1731838431273,0.13088894,91258.0,91256.0,0.0014127]
[1731838431466,0.054787,91257.0,91256.0,0.0014127]
[1731838432171,0.054787,91257.0,91255.0,0.36221128]
[1731838432371,0.054787,91257.0,91256.0,0.00141128]
[1731838432572,0.054787,91257.0,91255.0,0.3608]
[1731838433172,0.054787,91257.0,91255.0,0.3622107]
[1731838433576,0.054787,91257.0,91255.0,0.36221017]
[1731838433869,0.054787,91257.0,91255.0,0.3608]
[1731838435666,0.054787,91257.0,91252.0,0.00013895]
[1731838435667,0.054789,91253.0,91252.0,0.00013895]
[1731838437279,0.054789,91253.0,91252.0,0.00699332]
[1731838439085,0.054789,91253.0,91252.0,0.01247674]
[1731838439377,0.054787,91258.0,91257.0,0.054786]
[1731838439566,0.054787,91258.0,91257.0,0.06712379]
[1731838440277,0.00012642,91265.0,91260.0,0.054785]
[1731838440278,0.054784,91263.0,91260.0,0.054785]
[1731838440478,0.054784,91263.0,91261.0,0.07373779]
[1731838440778,0.054784,91263.0,91262.0,0.01233779]
[1731838441076,0.054784,91263.0,91262.0,0.01576471]
[1731838442680,0.054784,91263.0,91262.0,0.01028129]
[1731838442890,0.054784,91263.0,91261.0,0.0614]
[1731838443075,0.054784,91263.0,91262.0,0.01576379]
[1731838443978,0.054784,91263.0,91262.0,0.01233688]
[1731838444183,0.054784,91263.0,91262.0,0.01576379]
[1731838445277,0.00012642,91265.0,91264.0,0.054783]
[1731838445479,0.05490842,91265.0,91264.0,0.07195745]
[1731838445680,0.05490842,91265.0,91264.0,0.01576379]
[1731838445887,0.05490842,91265.0,91264.0,0.01717441]
[1731838446378,0.05490842,91265.0,91264.0,0.01576379]
[1731838449081,0.05490842,91265.0,91264.0,0.07054679]
[1731838449677,0.00012642,91265.0,91264.0,0.07054679]
[1731838450773,0.05490842,91265.0,91264.0,0.07054679]
[1731838451383,0.18579736,91265.0,91264.0,0.07054679]
[1731838451876,0.18579736,91265.0,91264.0,0.01576379]
[1731838451877,0.18590089,91265.0,91264.0,0.01576379]
[1731838452079,0.05490842,91265.0,91264.0,0.01576379]
[1731838452777,0.05490842,91265.0,91264.0,0.01576401]
[1731838453187,0.054784,91262.0,91261.0,0.116184]
[1731838453383,0.054784,91262.0,91261.0,0.12303786]
[1731838453590,0.054784,91262.0,91261.0,0.13194788]
[1731838458298,0.16112965,91262.0,91261.0,0.13194788]
[1731838458701,0.03011003,91262.0,91261.0,0.13194788]
[1731838459095,0.03011003,91262.0,91261.0,0.14222858]
[1731838459295,0.13101962,91263.0,91261.0,0.14222858]
[1731838459503,0.00012642,91265.0,91261.0,0.116184]
[1731838459504,0.13101962,91262.0,91261.0,0.116184]
[1731838459698,0.13101962,91262.0,91261.0,0.14222844]
[1731838459904,0.18580362,91262.0,91261.0,0.14222844]
[1731838460410,0.21630216,91262.0,91261.0,0.13194774]
[1731838462108,0.10808433,91262.0,91261.0,0.07054774]
[1731838462298,0.10808428,91262.0,91261.0,0.07054774]
[1731838462698,0.10808428,91262.0,91261.0,0.054784]
[1731838462898,0.10808428,91262.0,91261.0,0.07054771]
[1731838463702,0.05330028,91262.0,91261.0,0.07054771]
[1731838463904,0.05330028,91262.0,91261.0,0.37656371]
[1731838464210,0.00012642,91265.0,91261.0,0.77034866]
[1731838464508,0.00012642,91265.0,91264.0,0.054783]
[1731838464704,0.00012642,91265.0,91264.0,1.58082666]
[1731838466304,0.00012642,91265.0,91264.0,1.57054671]
[1731838467406,0.00012642,91265.0,91264.0,1.96007067]
[1731838467708,0.00012642,91265.0,91264.0,1.89857733]
[1731838468309,0.00012642,91265.0,91264.0,1.57054671]
[1731838468901,0.00012642,91265.0,91264.0,1.95968012]
[1731838469516,0.0051,91274.0,91273.0,0.054777]
[1731838469812,0.18619549,91286.0,91281.0,0.054773]
[1731838470014,0.18619549,91286.0,91281.0,0.07053671]
[1731838470509,0.00175919,91282.0,91281.0,0.07053671]
[1731838471819,0.00175919,91282.0,91281.0,0.1100343]
[1731838472406,0.05653119,91282.0,91281.0,0.07053671]
[1731838474015,0.00175919,91282.0,91281.0,0.07053671]
[1731838476311,0.00175919,91282.0,91281.0,0.054773]
[1731838476513,0.00175919,91282.0,91281.0,0.0705326]
[1731838479716,0.00175919,91282.0,91281.0,0.0602546]
[1731838480022,0.00175919,91282.0,91281.0,0.0705326]
[1731838486016,0.13318468,91282.0,91281.0,0.0705326]
[1731838486217,0.00175919,91282.0,91281.0,0.0705326]
[1731838486521,0.13318468,91282.0,91281.0,0.0705326]
[1731838487020,0.00175919,91282.0,91281.0,0.0705326]
[1731838487221,0.00175919,91282.0,91281.0,0.07194458]
[1731838487422,0.00175919,91282.0,91281.0,0.0705326]
[1731838487423,0.13318468,91282.0,91281.0,0.0705326]
[1731838487623,0.00175919,91282.0,91281.0,0.0705326]
[1731838488823,0.05624461,91282.0,91281.0,0.0705326]
[1731838492524,0.05624461,91282.0,91281.0,0.33274157]
[1731838493026,0.00175919,91282.0,91281.0,0.69354157]
[1731838493214,0.00175919,91282.0,91281.0,0.43133205]
[1731838493915,0.00175919,91282.0,91281.0,0.75911251]
[1731838494115,0.00175919,91282.0,91281.0,2.25911251]
[1731838495415,0.00175919,91282.0,91281.0,1.915573]
[1731838495620,0.00175919,91282.0,91281.0,1.93133182]
[1731838496522,0.4920204,91290.0,91289.0,0.054768]
[1731838496714,0.4920204,91290.0,91289.0,0.07052682]
[1731838497517,0.51953712,91290.0,91289.0,0.07052682]
[1731838497914,0.57430412,91290.0,91289.0,0.01575882]
[1731838498825,0.80440541,91290.0,91289.0,0.01575882]
[1731838499528,0.57430412,91290.0,91289.0,0.01575882]
[1731838499731,0.80442056,91290.0,91289.0,0.01575882]
[1731838499926,0.80442056,91290.0,91289.0,0.00890735]
[1731838499927,0.74965356,91290.0,91289.0,0.00890735]
[1731838500128,0.57430412,91290.0,91289.0,0.01575916]
[1731838500423,0.69795848,91290.0,91289.0,0.01575916]
[1731838500618,0.74965346,91290.0,91289.0,0.07052729]
[1731838501019,0.87445774,91290.0,91289.0,0.07052729]
[1731838501215,0.52068276,91290.0,91289.0,0.07052729]
[1731838501421,0.39000001,91290.0,91289.0,0.07052729]
[1731838501622,0.44476701,91290.0,91289.0,0.07052729]
[1731838501925,0.4447636,91290.0,91289.0,0.07052729]
[1731838502239,0.3899966,91290.0,91289.0,0.054768]
[1731838502531,0.3899966,91290.0,91289.0,0.07052738]
[1731838502832,0.3899966,91290.0,91289.0,0.054768]
[1731838503022,0.3899966,91290.0,91289.0,0.07052737]
[1731838503216,0.21464976,91290.0,91289.0,0.07052737]
[1731838504124,0.10814675,91290.0,91289.0,0.07052737]
[1731838505515,0.05486214,91290.0,91289.0,0.07052737]
[1731838505718,0.05486214,91290.0,91289.0,0.10982751]
[1731838506430,0.05486214,91290.0,91289.0,0.37209919]
[1731838506733,9.514e-05,91290.0,91289.0,0.10982751]
[1731838507229,9.514e-05,91290.0,91289.0,1.60982751]
[1731838507447,9.514e-05,91290.0,91289.0,1.97062751]
[1731838507624,0.13146396,91294.0,91289.0,1.99877951]
[1731838507830,0.13146396,91297.0,91296.0,0.054764]
[1731838508152,0.13146396,91298.0,91297.0,0.054763]
[1731838508327,0.13146396,91300.0,91299.0,0.054762]
[1731838508525,0.13146396,91300.0,91299.0,0.33272766]
[1731838508727,0.13155998,91300.0,91299.0,0.33272766]
[1731838508936,9.602e-05,91300.0,91299.0,0.33272766]
[1731838509232,9.602e-05,91300.0,91299.0,0.054762]
[1731838509447,9.602e-05,91300.0,91299.0,0.33263762]
[1731838509731,0.05458144,91300.0,91299.0,0.07188382]
[1731838509933,0.18592759,91300.0,91299.0,0.07051826]
[1731838510529,0.05458144,91300.0,91299.0,0.07051826]
[1731838511628,0.05458144,91300.0,91299.0,0.07188328]
[1731838511823,0.18592759,91300.0,91299.0,0.07051826]
[1731838512036,0.18592759,91300.0,91299.0,0.07188227]
[1731838512333,0.18592759,91300.0,91299.0,0.054762]
[1731838512637,0.18592759,91300.0,91299.0,0.070519]
[1731838512638,0.05458144,91300.0,91299.0,0.070519]
[1731838513339,0.05458144,91300.0,91299.0,0.07188285]
[1731838513635,0.05458144,91300.0,91299.0,0.070519]
[1731838514033,0.05458144,91300.0,91299.0,0.07188285]
[1731838515231,0.05458144,91300.0,91299.0,0.070519]
[1731838516328,0.05458144,91300.0,91299.0,0.054762]
[1731838516526,0.05458144,91300.0,91299.0,0.07051889]
[1731838519242,0.05458144,91300.0,91299.0,0.07051904]
[1731838519439,9.602e-05,91300.0,91299.0,0.07051904]
[1731838520653,0.1046251,91300.0,91299.0,0.07051904]
[1731838520943,0.15790325,91300.0,91299.0,0.07051904]
[1731838522437,0.15790325,91300.0,91299.0,0.07051909]
[1731838522833,0.05337417,91300.0,91299.0,0.054762]
[1731838523039,0.05337417,91300.0,91299.0,0.07051909]
[1731838524138,0.19700567,91300.0,91299.0,0.07051909]
[1731838524341,0.25028382,91300.0,91299.0,0.07188329]
[1731838524539,0.25028382,91300.0,91299.0,0.07051909]
[1731838525040,0.05337163,91300.0,91299.0,0.07051909]
[1731838525348,0.25028128,91300.0,91299.0,0.07051909]
[1731838525549,0.05337163,91300.0,91299.0,0.07051909]
[1731838526045,0.19700387,91300.0,91299.0,0.054762]
[1731838526244,0.05337163,91300.0,91299.0,0.07051826]
[1731838526449,9.602e-05,91300.0,91299.0,0.12500368]
[1731838528642,9.602e-05,91300.0,91299.0,0.48580368]
[1731838528948,9.602e-05,91300.0,91299.0,0.74792304]
[1731838529246,9.602e-05,91300.0,91299.0,0.48580368]
[1731838529547,9.602e-05,91300.0,91299.0,0.74790281]
[1731838530146,9.602e-05,91300.0,91299.0,0.48580368]
[1731838531148,9.602e-05,91300.0,91299.0,0.43131826]
[1731838532945,9.602e-05,91300.0,91299.0,0.415562]
[1731838533349,9.602e-05,91300.0,91299.0,0.43131706]
[1731838533848,0.1312646,91310.0,91300.0,0.054761]
[1731838534041,0.1312646,91310.0,91309.0,0.054756]
[1731838534237,0.3608,91314.0,91313.0,0.054753]
[1731838534541,0.3608,91314.0,91313.0,0.07050806]
[1731838534745,0.36092951,91314.0,91313.0,0.07050806]
[1731838534951,0.52501026,91314.0,91313.0,0.07050806]
[1731838535150,0.36092951,91314.0,91313.0,0.07050806]
[1731838535358,0.52501026,91314.0,91313.0,0.07050806]
[1731838535555,0.5194118,91314.0,91313.0,0.07050806]
[1731838535857,0.5741648,91314.0,91313.0,0.07050806]
[1731838536240,0.5741648,91314.0,91313.0,0.05817802]
[1731838536446,0.5741648,91314.0,91313.0,0.07050809]
[1731838539057,0.5743289,91314.0,91313.0,0.07050809]
[1731838539256,0.2135289,91314.0,91313.0,0.07050809]
[1731838540553,0.2135289,91314.0,91313.0,0.07050774]
[1731838542472,0.2135289,91314.0,91313.0,0.01575474]
[1731838542758,0.16263964,91314.0,91313.0,0.00890485]
[1731838542965,0.16263964,91314.0,91303.0,0.25272363]
[1731838542966,0.054759,91304.0,91303.0,0.054759]
[1731838543166,0.05448542,91306.0,91303.0,0.01575571]
[1731838543463,0.05448542,91306.0,91291.0,0.3608]
[1731838543464,0.054764,91295.0,91291.0,0.3608]
[1731838543670,0.10803589,91305.0,91295.0,0.00135799]
[1731838543671,0.054758,91305.0,91295.0,0.00135799]
[1731838543959,0.054758,91305.0,91292.0,0.21256789]
[1731838543960,0.054766,91292.0,91291.0,0.3608]
[1731838544161,0.054766,91292.0,91291.0,0.37655835]
[1731838545456,0.18607323,91292.0,91291.0,0.37655835]
[1731838546366,0.18607323,91292.0,91291.0,0.37655826]
[1731838547758,0.054766,91292.0,91291.0,0.37655826]
[1731838548071,0.18607323,91292.0,91291.0,0.37655826]
[1731838548258,0.054766,91292.0,91291.0,0.37655826]
[1731838549865,0.1080478,91292.0,91291.0,0.37655826]
[1731838552465,0.1080478,91292.0,91291.0,0.01575826]
[1731838553174,0.1080478,91292.0,91291.0,0.01575828]
[1731838553370,0.1080478,91292.0,91291.0,0.0171144]
[1731838553568,0.054767,91290.0,91289.0,0.054768]
[1731838553770,0.1080488,91290.0,91289.0,0.07052691]
[1731838553975,0.1080488,91290.0,91289.0,0.07188296]
[1731838554266,0.1080488,91290.0,91289.0,0.054768]
[1731838554473,0.1080488,91290.0,91289.0,0.07188285]
[1731838555170,0.1080488,91290.0,91289.0,0.0718827]
[1731838555574,0.1080488,91290.0,91289.0,0.07052686]
[1731838556773,0.0532818,91290.0,91289.0,0.07052686]
[1731838556978,0.16395103,91291.0,91290.0,0.054767]
[1731838557175,0.16395103,91292.0,91291.0,0.054767]
[1731838557478,0.16395103,91293.0,91292.0,0.054766]
[1731838557664,0.3608,91294.0,91292.0,0.01575886]
[1731838557865,0.415565,91294.0,91293.0,0.07052386]
[1731838558570,0.054765,91294.0,91293.0,0.07052386]
[1731838559272,0.054763,91298.0,91297.0,0.054763]
[1731838559475,0.054763,91298.0,91297.0,0.07052186]
[1731838560365,0.054763,91298.0,91297.0,0.01575886]
[1731838560366,0.16373384,91298.0,91297.0,0.01575886]
[1731838561465,0.16373384,91298.0,91273.0,1.5315]
[1731838561466,0.52037084,91298.0,91287.0,0.00135551]
[1731838561665,0.41528542,91288.0,91285.0,0.00135551]
[1731838561872,0.05477,91285.0,91284.0,0.00135551]
[1731838562274,0.054771,91283.0,91282.0,0.054772]
[1731838563181,0.05448542,91286.0,91277.0,0.03978524]
[1731838563182,0.054774,91278.0,91277.0,0.09456024]
[1731838563370,0.054774,91278.0,91277.0,0.054775]
[1731838563769,0.05448542,91279.0,91275.0,0.19658112]
[1731838563968,0.054777,91274.0,91273.0,0.25135812]
[1731838564171,0.054777,91274.0,91273.0,0.054777]
[1731838564780,0.10926242,91274.0,91273.0,0.054777]
[1731838566780,0.10926242,91274.0,91268.0,0.22758112]
[1731838566781,0.05448542,91274.0,91268.0,0.22758112]
[1731838566988,0.10926542,91269.0,91268.0,0.22758112]
[1731838567290,0.05478,91269.0,91268.0,0.32149824]
[1731838567671,0.05478,91269.0,91268.0,0.12491712]
[1731838568177,0.10926542,91269.0,91268.0,0.031]
[1731838568377,0.05478,91268.0,91267.0,0.19658112]
[1731838568679,0.05448542,91269.0,91261.0,0.19658112]
[1731838568680,0.054782,91266.0,91261.0,0.19658112]
[1731838568983,0.05448542,91274.0,91261.0,0.19658112]
[1731838568984,0.10926942,91262.0,91261.0,0.19658112]
[1731838569178,0.10926942,91262.0,91260.0,0.19658112]
[1731838569384,0.10926942,91262.0,91260.0,0.25136612]
[1731838569588,0.10926942,91262.0,91261.0,0.00685335]
[1731838571492,0.10926942,91262.0,91261.0,0.01233605]
[1731838571876,0.054784,91262.0,91261.0,0.01233605]
[1731838572987,0.054784,91262.0,91261.0,0.01233608]
[1731838573578,0.054784,91262.0,91261.0,0.01576273]
[1731838574302,0.054784,91262.0,91261.0,0.07054773]
[1731838575494,0.054784,91262.0,91261.0,0.01576273]
[1731838575702,0.054786,91258.0,91257.0,0.3608]
[1731838576110,0.09295792,91258.0,91257.0,0.3608]
[1731838577104,0.054789,91253.0,91252.0,1.50073895]
[1731838577295,0.10927442,91253.0,91252.0,1.50073895]
[1731838577499,0.10927442,91253.0,91252.0,1.50013895]
[1731838577705,0.10927442,91253.0,91252.0,1.50149324]
[1731838577898,0.10927442,91253.0,91252.0,0.00149324]
[1731838578107,0.10927442,91253.0,91252.0,0.00013895]